[Event "BAN-chT SAIF POWERTEC 2020"]
[Site "Dhaka"]
[Date "2021.03.28"]
[Round "10.3"]
[White "Sadhwani, Raunak"]
[Black "Deshmukh, Anup"]
[Result "1-0"]
[ECO "A40"]
[WhiteElo "2545"]
[BlackElo "2190"]
[Annotator "ChessBase"]
[PlyCount "51"]
[EventDate "2021.03.19"]
[EventType "team-tourn"]
[EventCountry "BAN"]
[SourceTitle "playchess.com"]
[Source "ChessBase"]
[SourceQuality "1"]
[TimeControl "5400+30"]

1. d4 {[%emt 0:00:00]} c6 {[%emt 0:00:00]} 2. Bf4 {[%emt 0:00:57]} Qb6 {[%emt 0:01:25]} 3. b3 {[%emt 0:01:21]} d6 {[%emt 0:00:55]} 4. e3 {[%emt 0:02:07]} g5 {[%emt 0:01:19]} 5. Bg3 {[%emt 0:00:06]} Bg7 {[%emt 0:00:15]} 6. h4 {[%emt 0:02:47]} c5 {[%emt 0:03:21]} 7. c3 {[%emt 0:00:09]} g4 {[%emt 0:05:44]} 8. h5 {[%emt 0:01:39]} cxd4 {[%emt 0:06:46]} 9. exd4 {[%emt 0:00:41]} Nc6 {[%emt 0:00:16]} 10. Nd2 {[%emt 0:00:23]} d5 {[%emt 0:03:56]} 11. Ne2 {[%emt 0:04:50]} h6 {[%emt 0:08:47]} 12. Nf4 {[%emt 0:01:20]} Nf6 {[%emt 0:00:22]} 13. Bh4 {[%emt 0:09:11]} Nxd4 {[%emt 0:11:43]} 14. cxd4 {[%emt 0:06:18]} Qxd4 {[%emt 0:00:11]} 15. Bg3 {[%emt 0:06:21]} Ne4 {[%emt 0:05:40]} 16. Nxe4 {[%emt 0:03:43]} Qxe4+ {[%emt 0:02:39]} 17. Be2 {[%emt 0:00:22]} Bc3+ {[%emt 0:05:28]} 18. Kf1 {[%emt 0:00:05]} e6 {[%emt 0:23:47]} 19. Rc1 {[%emt 0:01:07]} Bb2 {[%emt 0:05:36]} 20. Rc2 {[%emt 0:00:30]} Bg7 {[%emt 0:01:57]} 21. Bxg4 {[%emt 0:00:38]} Bd7 {[%emt 0:00:48]} 22. Kg1 {[%emt 0:00:23]} O-O {[%emt 0:00:21]} 23. Nxd5 {[%emt 0:01:33]} Rfd8 {[%emt 0:00:57]} 24. Bf3 {[%emt 0:00:56]} Qh7 {[%emt 0:01:08]} 25. Ne7+ {[%emt 0:00:07]} Kh8 {[%emt 0:00:23]} 26. Rd2 {[%emt 0:00:07]} 1-0

[Event "BAN-chT SAIF POWERTEC 2020"]
[Site "Dhaka"]
[Date "2021.03.28"]
[Round "10.3"]
[White "Sanket Chakravarty"]
[Black "Mollah Abdullah, Al Rakib"]
[Result "1/2-1/2"]
[ECO "A10"]
[WhiteElo "2106"]
[BlackElo "2463"]
[Annotator "ChessBase"]
[PlyCount "48"]
[EventDate "2021.03.19"]
[EventType "team-tourn"]
[EventCountry "BAN"]
[SourceTitle "playchess.com"]
[Source "ChessBase"]
[SourceQuality "1"]
[TimeControl "5400+30"]

1. c4 {[%emt 0:00:00]} g6 {[%emt 0:02:47]} 2. Nc3 {[%emt 0:00:00]} Bg7 {[%emt 0:00:07]} 3. g3 {[%emt 0:00:00]} e6 {[%emt 0:00:13]} 4. Bg2 {[%emt 0:00:00]} Ne7 {[%emt 0:00:08]} 5. e4 {[%emt 0:00:17]} b6 {[%emt 0:05:21]} 6. Nge2 {[%emt 0:00:50]} Bb7 {[%emt 0:00:24]} 7. O-O {[%emt 0:00:18]} d6 {[%emt 0:01:40]} 8. d3 {[%emt 0:01:05]} Nd7 {[%emt 0:01:27]} 9. Be3 {[%emt 0:00:20]} O-O {[%emt 0:02:32]} 10. Qd2 {[%emt 0:00:33]} Ne5 {[%emt 0:05:21]} 11. h3 {[%emt 0:01:32]} f5 {[%emt 0:10:04]} 12. f4 {[%emt 0:11:42]} N5c6 {[%emt 0:03:04]} 13. Rab1 {[%emt 0:07:55]} Qd7 {[%emt 0:03:32]} 14. b4 {[%emt 0:01:46]} Rae8 {[%emt 0:11:01]} 15. Rfe1 {[%emt 0:05:27]} Kh8 {[%emt 0:09:58]} 16. a3 {[%emt 0:05:07]} Nd8 {[%emt 0:12:13]} 17. Rbc1 {[%emt 0:12:45]} Ndc6 {[%emt 0:09:59]} 18. Rcd1 {[%emt 0:02:34]} Ng8 {[%emt 0:03:15]} 19. Nb5 {[%emt 0:19:35]} Nf6 {[%emt 0:03:31]} 20. Nbc3 {[%emt 0:00:34]} Nh5 {[%emt 0:01:55]} 21. Kh2 {[%emt 0:02:05]} Nf6 {[%emt 0:03:13]} 22. Kg1 {[%emt 0:00:28]} Nh5 {[%emt 0:00:24]} 23. Kh2 {[%emt 0:00:06]} Nf6 {[%emt 0:00:02]} 24. Kg1 {[%emt 0:00:01]} Nh5 {[%emt 0:00:01]} 1/2-1/2

[Event "BAN-chT SAIF POWERTEC 2020"]
[Site "Dhaka"]
[Date "2021.03.28"]
[Round "10.4"]
[White "Rahman, Ziaur"]
[Black "Islam, Khandaker Aminul"]
[Result "1-0"]
[ECO "A50"]
[WhiteElo "2419"]
[BlackElo "2174"]
[Annotator "NA"]
[PlyCount "73"]
[EventDate "2021.03.19"]
[EventType "team-tourn"]
[EventCountry "BAN"]
[SourceTitle "playchess.com"]
[Source "ChessBase"]
[SourceQuality "1"]
[TimeControl "5400+30"]

1. Nf3 {[%emt 1:30:30]} b6 {[%emt 1:30:30]} 2. g3 {[%emt 0:00:00]} Bb7 {[%emt 0:00:00]} 3. Bg2 {[%emt 0:00:00]} g6 {[%emt 0:00:00]} 4. O-O {[%emt 0:01:30]} Bg7 {[%emt 0:00:00]} 5. d4 {[%emt 0:00:00]} Nf6 {[%emt 0:00:00]} 6. c4 {[%emt 0:01:00]} d6 {[%emt 0:02:30]} 7. d5 {[%emt 0:00:30]} e5 {[%emt 0:00:30]} 8. Nc3 {[%emt 0:00:00]} O-O {[%emt 0:00:30]} 9. e4 {[%emt 0:01:00]} Nbd7 {[%emt 0:00:00]} 10. Bg5 {[%emt 0:00:00]} h6 {[%emt 0:00:00]} 11. Be3 {[%emt 0:01:00]} a5 {[%emt 0:01:30]} 12. Qc1 {[%emt 0:00:30]} Kh7 {[%emt 0:00:30]} 13. Qc2 {[%emt 0:00:30]} Nc5 {[%emt 0:00:00]} 14. Rab1 {[%emt 0:00:30]} Bc8 {[%emt 0:01:00]} 15. a3 {[%emt 0:00:30]} Nfxe4 {[%emt 0:00:30]} 16. Nxe4 {[%emt 0:00:00]} Nxe4 {[%emt 0:00:30]} 17. Qxe4 {[%emt 0:00:00]} Bf5 {[%emt 0:00:00]} 18. Qh4 {[%emt 0:01:30]} Qxh4 {[%emt 0:01:00]} 19. Nxh4 {[%emt 0:00:00]} Bxb1 {[%emt 0:00:30]} 20. Rxb1 {[%emt 0:01:00]} f5 {[%emt 0:00:30]} 21. b3 {[%emt 0:00:30]} f4 {[%emt 0:00:30]} (21... Bf6 $142) 22. Bd2 {[%emt 0:00:30]} Bf6 {[%emt 0:00:30]} 23. Be4 {[%emt 0:00:30]} Bxh4 {[%emt 0:00:00]} 24. gxh4 {[%emt 0:00:00]} Kg7 {[%emt 0:00:00]} 25. Kg2 {[%emt 0:01:00]} Kf6 {[%emt 0:01:30]} 26. f3 {[%emt 0:00:30]} h5 {[%emt 0:00:30]} 27. Be1 {[%emt 0:00:30]} g5 {[%emt 0:00:30]} (27... Rg8 {was necessary.} 28. Kh3 Kg7) 28. hxg5+ {[%emt 0:00:00]} Kxg5 {[%emt 0:00:30]} 29. Kh3 {[%emt 0:01:00]} Kh6 {[%emt 0:00:30]} 30. Rb2 $18 {[%emt 0:00:00]} Rg8 {[%emt 0:00:30]} 31. Bh4 {[%emt 0:01:00]} Rg1 {[%emt 0:00:30]} 32. Rg2 {[%emt 0:00:30]} Rg8 {[%emt 0:00:30]} 33. Rxg1 {[%emt 0:00:00]} Rxg1 {[%emt 0:00:00]} 34. Bd8 {[%emt 0:01:00]} Rg7 {[%emt 0:01:00]} 35. Kh4 {[%emt 0:00:00]} Rg2 {[%emt 0:00:00]} 36. h3 {[%emt 0:01:00]} Rg7 {[%emt 0:00:00]} 37. a4 {[%emt 0:00:30]} 1-0

[Event "BAN-chT SAIF POWERTEC 2020"]
[Site "Dhaka"]
[Date "2021.03.28"]
[Round "10.5"]
[White "Adhiban, B.."]
[Black "Abu Sufian, Shakil"]
[Result "1-0"]
[ECO "B12"]
[WhiteElo "2659"]
[BlackElo "2244"]
[Annotator "ChessBase"]
[PlyCount "73"]
[EventDate "2021.03.19"]
[EventType "team-tourn"]
[EventCountry "BAN"]
[SourceTitle "playchess.com"]
[Source "ChessBase"]
[SourceQuality "1"]
[TimeControl "5400+30"]

1. e4 {[%emt 0:00:00]} c6 {[%emt 0:00:00]} 2. d4 {[%emt 0:00:11]} d5 {[%emt 0:00:00]} 3. f3 {[%emt 0:00:15]} e6 {[%emt 0:00:45]} 4. Nc3 {[%emt 0:00:10]} Bb4 {[%emt 0:02:29]} 5. Bd2 {[%emt 0:00:10]} b6 {[%emt 0:04:33]} 6. a3 {[%emt 0:00:18]} Bxc3 {[%emt 0:03:39]} 7. Bxc3 {[%emt 0:00:06]} Ba6 {[%emt 0:00:40]} 8. Bxa6 {[%emt 0:00:17]} Nxa6 {[%emt 0:00:02]} 9. Ne2 {[%emt 0:00:06]} Nf6 {[%emt 0:00:48]} 10. Qd3 {[%emt 0:01:34]} Nc7 {[%emt 0:02:32]} 11. O-O {[%emt 0:03:04]} a5 {[%emt 0:04:51]} 12. Rad1 {[%emt 0:04:01]} O-O {[%emt 0:15:47]} 13. Be1 {[%emt 0:00:46]} Nfe8 {[%emt 0:02:19]} 14. a4 {[%emt 0:05:18]} Nd6 {[%emt 0:08:00]} 15. b3 {[%emt 0:03:20]} f5 {[%emt 0:03:21]} 16. e5 {[%emt 0:02:09]} Nc8 {[%emt 0:03:37]} 17. h4 {[%emt 1:16:45]} Qd7 {[%emt 0:07:21]} 18. Qe3 {[%emt 0:00:00]} Ne7 {[%emt 0:04:00]} 19. h5 {[%emt 0:00:00]} Qe8 {[%emt 0:00:41]} 20. Nf4 {[%emt 0:00:00]} g5 {[%emt 0:02:55]} 21. hxg6 {[%emt 0:00:00]} Nxg6 {[%emt 0:00:08]} 22. Kf2 {[%emt 0:00:00]} Nxf4 {[%emt 0:00:34]} 23. Qxf4 {[%emt 0:00:00]} Rf7 {[%emt 0:03:58]} 24. Rh1 {[%emt 0:00:00]} c5 {[%emt 0:00:15]} 25. Rh6 {[%emt 0:00:00]} c4 {[%emt 0:29:15]} 26. Bd2 {[%emt 0:00:00]} Rg7 {[%emt 0:00:00]} 27. Rdh1 {[%emt 0:00:00]} cxb3 {[%emt 0:00:00]} 28. cxb3 {[%emt 0:00:00]} Na6 {[%emt 0:00:00]} 29. Qh4 {[%emt 0:00:00]} Raa7 {[%emt 0:00:00]} 30. Rxe6 {[%emt 0:00:00]} Qxe6 {[%emt 0:00:00]} 31. Qd8+ {[%emt 0:00:00]} Kf7 {[%emt 0:00:00]} 32. Rh6 {[%emt 0:00:00]} Qxh6 {[%emt 0:00:00]} 33. Bxh6 {[%emt 0:00:00]} Rg6 {[%emt 0:00:00]} 34. Qf8+ {[%emt 0:00:00]} Ke6 {[%emt 0:00:00]} 35. Qc8+ {[%emt 0:00:00]} Ke7 {[%emt 0:00:00]} 36. Bf8+ {[%emt 0:00:00]} Kf7 {[%emt 0:00:00]} 37. Bd6 {[%emt 0:00:00]} 1-0

[Event "BAN-chT SAIF POWERTEC 2020"]
[Site "Dhaka"]
[Date "2021.03.28"]
[Round "10.6"]
[White "Narayanan.S.L"]
[Black "Reefat, Bin-Sattar"]
[Result "1-0"]
[ECO "D13"]
[WhiteElo "2618"]
[BlackElo "2409"]
[Annotator "ChessBase"]
[PlyCount "43"]
[EventDate "2021.03.19"]
[EventType "team-tourn"]
[EventCountry "BAN"]
[SourceTitle "playchess.com"]
[Source "ChessBase"]
[SourceQuality "1"]
[TimeControl "5400+30"]

1. d4 {[%emt 0:00:00]} d5 {[%emt 0:00:00]} 2. c4 {[%emt 0:00:00]} c6 {[%emt 0:00:08]} 3. Nc3 {[%emt 0:00:02]} Nf6 {[%emt 1:31:22]} 4. cxd5 {[%emt 0:00:33]} cxd5 {[%emt 0:00:00]} 5. Bf4 {[%emt 0:00:03]} Nc6 {[%emt 0:00:00]} 6. e3 {[%emt 1:32:22]} a6 {[%emt 0:00:00]} 7. Be2 {[%emt 0:00:30]} Bf5 {[%emt 0:00:00]} 8. Nf3 {[%emt 0:00:00]} e6 {[%emt 0:00:00]} 9. Qb3 {[%emt 0:00:00]} Bd6 {[%emt 0:00:00]} 10. Bxd6 {[%emt 0:00:00]} Qxd6 {[%emt 0:00:00]} 11. Qxb7 {[%emt 0:00:00]} O-O {[%emt 0:00:00]} 12. Qb3 {[%emt 0:02:30]} Nb4 {[%emt 0:00:00]} 13. O-O {[%emt 0:00:30]} Nc2 {[%emt 0:00:00]} 14. Rab1 {[%emt 0:00:00]} Rfb8 {[%emt 0:00:00]} 15. Qa4 {[%emt 0:01:00]} Rb4 {[%emt 0:00:00]} 16. Qa5 {[%emt 0:00:30]} Rab8 {[%emt 0:06:30]} 17. b3 {[%emt 0:00:00]} Qc6 {[%emt 0:00:00]} 18. Na4 {[%emt 0:00:00]} Nxe3 {[%emt 0:00:09]} 19. Rbc1 {[%emt 0:00:00]} Nc4 {[%emt 0:01:21]} 20. Qc5 {[%emt 0:00:00]} Qa8 {[%emt 0:00:30]} 21. Nc3 {[%emt 0:00:00]} Nd7 {[%emt 0:00:00]} 22. Qe7 {[%emt 0:00:00]} 1-0

[Event "BAN-chT SAIF POWERTEC 2020"]
[Site "Dhaka"]
[Date "2021.03.28"]
[Round "10.6"]
[White "Mohammad Minhaz Uddin"]
[Black "Kovalev, Vladislav"]
[Result "1/2-1/2"]
[ECO "B29"]
[WhiteElo "2295"]
[BlackElo "2648"]
[Annotator "ChessBase"]
[PlyCount "59"]
[EventDate "2021.03.19"]
[EventType "team-tourn"]
[EventCountry "BAN"]
[SourceTitle "playchess.com"]
[Source "ChessBase"]
[SourceQuality "1"]
[TimeControl "5400+30"]

1. e4 {[%emt 0:00:00]} c5 {[%emt 0:00:00]} 2. Nf3 {[%emt 0:00:00]} Nf6 {[%emt 0:00:00]} 3. Nc3 {[%emt 0:00:00]} d5 {[%emt 0:00:47]} 4. e5 {[%emt 0:06:46]} Ne4 {[%emt 0:10:53]} 5. Bb5+ {[%emt 0:09:52]} Nc6 {[%emt 0:01:37]} 6. Nxe4 {[%emt 0:15:21]} dxe4 {[%emt 0:00:03]} 7. Ng5 {[%emt 0:00:10]} Qd4 {[%emt 0:22:58]} 8. Qe2 {[%emt 0:00:19]} Bf5 {[%emt 0:00:30]} 9. f4 {[%emt 0:27:34]} exf3 {[%emt 0:02:54]} 10. Bxc6+ {[%emt 0:00:04]} bxc6 {[%emt 0:00:07]} 11. Nxf3 {[%emt 0:03:12]} Qd5 {[%emt 0:11:37]} 12. d3 {[%emt 0:00:31]} g6 {[%emt 0:04:09]} 13. b3 {[%emt 0:00:34]} Bg7 {[%emt 0:00:09]} 14. Bb2 {[%emt 0:00:03]} O-O {[%emt 0:00:31]} 15. O-O {[%emt 0:05:08]} Rad8 {[%emt 0:08:17]} 16. Rae1 {[%emt 0:00:42]} Bg4 {[%emt 0:07:36]} 17. h3 {[%emt 0:00:55]} Bxf3 {[%emt 0:00:06]} 18. Rxf3 {[%emt 0:00:09]} f5 {[%emt 0:06:38]} 19. exf6 {[%emt 0:01:01]} Bxf6 {[%emt 0:01:34]} 20. Be5 {[%emt 0:05:14]} Rf7 {[%emt 0:00:48]} 21. Re3 {[%emt 0:02:34]} Rdf8 {[%emt 0:00:23]} 22. Re4 {[%emt 0:01:55]} Bg5 {[%emt 0:02:43]} 23. Bg3 {[%emt 0:05:56]} Bf6 {[%emt 0:00:12]} 24. Be5 {[%emt 0:01:45]} Bg5 {[%emt 0:00:50]} 25. Bg3 {[%emt 0:00:05]} Bf6 {[%emt 0:00:34]} 26. Kh2 {[%emt 0:00:02]} Bc3 {[%emt 0:00:17]} 27. Rd1 {[%emt 0:00:43]} Bf6 {[%emt 0:01:30]} 28. Re1 {[%emt 0:02:24]} Bc3 {[%emt 0:00:06]} 29. Rd1 {[%emt 0:01:10]} Bf6 {[%emt 0:00:04]} 30. Re1 {[%emt 0:10:51]} 1/2-1/2

[Event "BAN-chT SAIF POWERTEC 2020"]
[Site "Dhaka"]
[Date "2021.03.28"]
[Round "10.7"]
[White "Kovalev, Vladislav"]
[Black "Puranik, Abhimanyu"]
[Result "0-1"]
[ECO "C80"]
[WhiteElo "2648"]
[BlackElo "2584"]
[Annotator "ChessBase"]
[PlyCount "120"]
[EventDate "2021.03.19"]
[EventType "team-tourn"]
[EventCountry "BAN"]
[SourceTitle "playchess.com"]
[Source "ChessBase"]
[SourceQuality "1"]
[TimeControl "5400+30"]

1. e4 {[%emt 0:00:00]} e5 {[%emt 0:00:00]} 2. Nf3 {[%emt 0:00:00]} Nc6 {[%emt 0:00:00]} 3. Bb5 {[%emt 0:00:00]} a6 {[%emt 0:00:00]} 4. Ba4 {[%emt 0:00:00]} Nf6 {[%emt 0:00:00]} 5. O-O {[%emt 0:00:00]} Nxe4 {[%emt 0:00:03]} 6. d4 {[%emt 0:00:15]} b5 {[%emt 0:00:05]} 7. Bb3 {[%emt 0:00:05]} d5 {[%emt 0:00:04]} 8. dxe5 {[%emt 0:00:06]} Be6 {[%emt 0:00:05]} 9. Nbd2 {[%emt 0:07:36]} Nc5 {[%emt 0:00:40]} 10. c3 {[%emt 0:00:10]} d4 {[%emt 0:00:55]} 11. Bxe6 {[%emt 0:03:25]} Nxe6 {[%emt 0:00:06]} 12. cxd4 {[%emt 0:00:06]} Ncxd4 {[%emt 0:00:49]} 13. a4 {[%emt 0:00:15]} Bb4 {[%emt 0:00:23]} 14. axb5 {[%emt 0:09:41]} Nxb5 {[%emt 0:00:36]} 15. Ne4 {[%emt 0:01:20]} Qxd1 {[%emt 0:01:05]} 16. Rxd1 {[%emt 0:00:03]} Ke7 {[%emt 0:00:13]} 17. Be3 {[%emt 0:00:42]} Rhd8 {[%emt 0:04:55]} 18. Rdc1 {[%emt 0:00:04]} Rd5 {[%emt 0:08:28]} 19. g4 {[%emt 0:02:02]} a5 {[%emt 0:06:45]} 20. Kg2 {[%emt 0:05:09]} c5 {[%emt 0:06:00]} 21. Ra4 {[%emt 0:45:31]} Nbd4 {[%emt 0:11:45]} 22. Nc3 {[%emt 0:00:20]} Rd7 {[%emt 0:10:15]} 23. Na2 {[%emt 0:00:22]} Nb3 {[%emt 0:07:17]} 24. Nxb4 {[%emt 0:01:12]} cxb4 {[%emt 0:00:36]} 25. Rc4 {[%emt 0:05:15]} Rb8 {[%emt 0:00:48]} 26. Nh4 {[%emt 0:01:43]} Rd5 {[%emt 0:08:33]} 27. f4 {[%emt 0:02:45]} g5 {[%emt 0:00:28]} 28. Nf5+ {[%emt 0:00:59]} Kd7 {[%emt 0:00:10]} 29. fxg5 {[%emt 0:00:09]} Rxe5 {[%emt 0:00:28]} 30. Kf3 {[%emt 0:04:26]} Rbb5 {[%emt 0:03:03]} 31. h4 {[%emt 0:00:15]} Rbd5 {[%emt 0:00:30]} 32. Re4 {[%emt 0:02:59]} Nec5 {[%emt 0:07:28]} 33. Rxe5 {[%emt 0:03:25]} Rxe5 {[%emt 0:00:02]} 34. Ra2 {[%emt 0:01:08]} Nd3 {[%emt 0:02:27]} 35. Nd4 {[%emt 0:02:38]} Ndc1 {[%emt 0:01:32]} 36. Ra4 {[%emt 0:02:49]} Nxd4+ {[%emt 0:02:49]} 37. Bxd4 {[%emt 0:00:01]} Rd5 {[%emt 0:00:11]} 38. Ke4 {[%emt 0:00:36]} Ke6 {[%emt 0:00:42]} 39. Bf6 {[%emt 0:00:45]} Nb3 {[%emt 0:00:35]} 40. Ra2 {[%emt 0:00:16]} Rc5 {[%emt 0:01:08]} 41. h5 {[%emt 0:01:11]} Rc4+ {[%emt 0:01:42]} 42. Kf3 {[%emt 0:00:03]} Kd7 {[%emt 0:00:13]} 43. Kg3 {[%emt 0:00:41]} Kc6 {[%emt 0:00:25]} 44. Kh4 {[%emt 0:00:59]} Kb5 {[%emt 0:01:03]} 45. g6 {[%emt 0:00:30]} fxg6 {[%emt 0:00:04]} 46. hxg6 {[%emt 0:00:01]} hxg6 {[%emt 0:00:05]} 47. Kg5 {[%emt 0:00:01]} a4 {[%emt 0:01:07]} 48. Bg7 {[%emt 0:00:06]} Nc5 {[%emt 0:03:14]} 49. Be5 {[%emt 0:01:09]} Re4 {[%emt 0:01:28]} 50. Bf6 {[%emt 0:00:22]} Nb3 {[%emt 0:00:30]} 51. Bh8 {[%emt 0:00:30]} Rc4 {[%emt 0:02:30]} 52. Bg7 {[%emt 0:01:15]} Nd2 {[%emt 0:00:39]} 53. Ra1 {[%emt 0:00:35]} Nf3+ {[%emt 0:00:06]} 54. Kh6 {[%emt 0:00:32]} Rxg4 {[%emt 0:00:18]} 55. Bf6 {[%emt 0:00:22]} Rg2 {[%emt 0:00:34]} 56. Rc1 {[%emt 0:00:27]} Nd2 {[%emt 0:00:25]} 57. Rc8 {[%emt 0:00:09]} Ne4 {[%emt 0:00:19]} 58. Be5 {[%emt 0:00:55]} Nf2 {[%emt 0:00:34]} 59. Rb8+ {[%emt 0:00:37]} Kc4 {[%emt 0:00:07]} 60. Bd6 {[%emt 0:00:24]} Nd3 {[%emt 0:00:11]} 0-1

[Event "BAN-chT SAIF POWERTEC 2020"]
[Site "Dhaka"]
[Date "2021.03.28"]
[Round "10.7"]
[White "Reefat, Bin-Sattar"]
[Black "Islam, Khandaker Aminul"]
[Result "1-0"]
[ECO "C45"]
[WhiteElo "2409"]
[BlackElo "2174"]
[Annotator "NA"]
[PlyCount "65"]
[EventDate "2021.03.19"]
[EventType "team-tourn"]
[EventCountry "BAN"]
[SourceTitle "playchess.com"]
[Source "ChessBase"]
[SourceQuality "1"]
[TimeControl "5400+30"]

1. e4 {[%emt 1:30:30]} e5 {[%emt 0:00:00]} 2. Nf3 {[%emt 0:00:30]} Nc6 3. d4 {[%emt 0:00:00]} exd4 {[%emt 0:00:00]} 4. Nxd4 {[%emt 0:00:00]} Bc5 {[%emt 1:32:00]} 5. Be3 {[%emt 0:00:00]} Qf6 {[%emt 0:00:00]} 6. c3 {[%emt 0:00:00]} Nge7 {[%emt 0:01:00]} 7. Bb5 {[%emt 0:02:30]} a6 {[%emt 0:00:30]} 8. Ba4 {[%emt 0:00:30]} Ba7 {[%emt 0:00:00]} 9. O-O {[%emt 0:00:00]} Ne5 {[%emt 0:01:00]} 10. Nd2 {[%emt 0:01:00]} h5 {[%emt 0:00:30]} 11. N2f3 {[%emt 0:00:00]} Nxf3+ {[%emt 0:00:00]} 12. Nxf3 $14 {[%emt 0:01:00]} Bxe3 {[%emt 0:00:00]} 13. fxe3 {[%emt 0:00:00]} Rf8 {[%emt 0:01:30]} 14. c4 {[%emt 0:01:00]} Nc6 {[%emt 0:00:30]} 15. Qd2 {[%emt 0:00:30]} Qe7 {[%emt 0:00:30]} 16. Qd5 {[%emt 0:00:30]} g6 {[%emt 0:00:30]} 17. e5 {[%emt 0:00:30]} Nb4 {[%emt 0:00:30]} 18. Qd2 {[%emt 0:00:30]} Nc6 {[%emt 0:00:30]} 19. Rad1 {[%emt 0:00:00]} Rb8 {[%emt 0:00:00]} 20. Qd5 {[%emt 0:01:00]} Nb4 {[%emt 0:00:00]} 21. Qe4 {[%emt 0:00:00]} b5 {[%emt 0:00:00]} 22. cxb5 {[%emt 0:00:00]} axb5 {[%emt 0:00:00]} 23. Bb3 {[%emt 0:00:00]} c5 {[%emt 0:00:00]} 24. a3 {[%emt 0:02:00]} Na6 {[%emt 0:03:00]} 25. Bd5 {[%emt 0:00:00]} Nc7 {[%emt 0:00:00]} 26. Qf4 {[%emt 0:01:00]} Rb6 {[%emt 0:00:00]} 27. e4 {[%emt 0:00:00]} Ne6 {[%emt 0:00:00]} 28. Bxe6 {[%emt 0:00:13]} Rxe6 {[%emt 0:02:00]} 29. Ng5 {[%emt 0:00:31]} Rxe5 {[%emt 0:00:30]} 30. Nh7 {[%emt 0:00:07]} Rh8 {[%emt 0:00:00]} 31. Nf6+ {[%emt 0:00:42]} Kd8 {[%emt 0:01:00]} 32. Rd5 {[%emt 0:00:35]} Re6 {[%emt 0:00:30]} 33. Nxd7 {[%emt 0:01:22]} 1-0

[Event "BAN-chT SAIF POWERTEC 2020"]
[Site "Dhaka"]
[Date "2021.03.28"]
[Round "10.8"]
[White "Subrota, Biswas"]
[Black "Mehdi Hasan Parag"]
[Result "1-0"]
[ECO "B12"]
[WhiteElo "2262"]
[BlackElo "2204"]
[Annotator "NA"]
[PlyCount "74"]
[EventDate "2021.03.19"]
[EventType "team-tourn"]
[EventCountry "BAN"]
[SourceTitle "playchess.com"]
[Source "ChessBase"]
[SourceQuality "1"]
[TimeControl "5400+30"]

1. e4 {[%emt 0:00:43]} c6 {[%emt 0:00:00]} 2. d4 {[%emt 0:00:02]} d5 {[%emt 0:00:00]} 3. e5 {[%emt 0:00:02]} Bf5 {[%emt 0:00:16]} 4. Nf3 {[%emt 0:00:06]} e6 {[%emt 0:00:19]} 5. Be2 {[%emt 0:00:08]} Ne7 {[%emt 0:00:29]} 6. O-O {[%emt 0:00:03]} h6 {[%emt 0:00:09] 6...h6 is a critical line.} 7. a4 {[%emt 0:01:47]} Nd7 {[%emt 0:00:27]} 8. a5 {[%emt 0:00:04]} g5 {[%emt 0:00:15]} 9. a6 {[%emt 0:04:06]} b6 {[%emt 0:00:10]} 10. b4 {[%emt 0:00:43] [#]} b5 $146 {[%emt 0:00:51]} ({Predecessor:} 10... Bg7 11. Ne1 O-O 12. f4 gxf4 13. Bxf4 Ng6 14. Bd3 Bxd3 15. Nxd3 c5 16. c3 Rc8 {1-0 (40) Abdusattorov,N (2627)-Arutinian,D (2549) chess.com INT 2020}) 11. Ne1 {[%emt 0:00:37]} Bg7 {[%emt 0:00:24]} 12. Nd3 {[%emt 0:10:12]} Qc7 {[%emt 0:00:49]} 13. Na3 {[%emt 0:04:03]} O-O {[%emt 0:04:06]} 14. f4 {[%emt 0:01:00]} gxf4 {[%emt 0:00:49]} 15. Nxf4 {[%emt 0:03:34]} ({White should try} 15. c3 $14) 15... Bg6 {[%emt 0:02:19]} 16. Bd3 {[%emt 0:03:16]} Kh7 {[%emt 0:02:38]} 17. c3 {[%emt 0:06:26]} Nf5 {[%emt 0:21:24]} 18. Ra2 {[%emt 0:03:55]} Nxe5 {[%emt 0:02:07]} 19. dxe5 {[%emt 0:00:05]} Bxe5 $18 {[%emt 0:00:23]} 20. g4 {[%emt 0:06:51]} Ne7 {[%emt 0:12:15]} 21. Raf2 {[%emt 0:03:52]} Bg7 {[%emt 0:01:51]} 22. Bxg6+ {[%emt 0:10:34]} Nxg6 {[%emt 0:00:47]} 23. Nh5 {[%emt 0:01:02]} Bxc3 {[%emt 0:14:59]} 24. Bxh6 {[%emt 0:00:48]} Qe5 {[%emt 0:17:22]} 25. Bxf8 {[%emt 0:00:38]} Rxf8 {[%emt 0:00:12]} 26. Nf6+ {[%emt 0:00:04]} Kg7 {[%emt 0:08:23]} 27. Nd7 {[%emt 0:00:07]} Qe4 {[%emt 0:04:36]} 28. Nxf8 {[%emt 0:00:17]} Kxf8 {[%emt 0:00:10]} 29. Qf3 {[%emt 0:01:26]} Qxf3 {[%emt 0:00:49]} 30. Rxf3 {[%emt 0:00:03]} Bd4+ {[%emt 0:00:11]} 31. Kh1 {[%emt 0:00:10]} Ne5 {[%emt 0:00:03]} 32. Rf6 {[%emt 0:00:57]} Ke7 {[%emt 0:00:15]} 33. Nc2 {[%emt 0:00:06]} Bb6 {[%emt 0:00:19]} 34. R6f4 {[%emt 0:00:18]} Kd6 {[%emt 0:00:25]} 35. g5 {[%emt 0:00:30]} d4 {[%emt 0:00:42]} 36. Nxd4 {[%emt 0:00:22]} Nd3 {[%emt 0:00:09]} 37. Rxf7 {[%emt 0:00:25]} Kd5 {[%emt 0:07:07]} 1-0